bitfinex-derivatives/quotes_ETHF0:USTF0_20260123
["timestamp","ask_amount","ask_price","bid_price","bid_amount"]
[1769200403665,0.53999501,2942.5,2941.5,0.00510246]
[1769200403965,0.36986501,2942.2,2940.2,2.85862559]
[1769200404267,1.20752626,2942.1,2940.2,2.85862559]
[1769200404466,0.36986501,2942.2,2940.2,2.85862559]
[1769200404658,1.20763556,2942.1,2940.2,2.85862559]
[1769200404860,1.29350683,2941.3,2940.2,0.00306023]
[1769200405069,1.57371744,2941.2,2939.2,2.69593344]
[1769200405269,1.20763556,2941.1,2939.2,2.69593344]
[1769200405466,1.20763556,2941.0,2939.2,2.69593344]
[1769200405765,1.20763556,2940.9,2939.2,2.69593344]
[1769200405963,0.00510246,2940.4,2939.2,2.69937577]
[1769200406865,0.00510246,2940.4,2939.2,2.86969577]
[1769200407064,0.00277199,2940.9,2939.2,2.86969577]
[1769200407370,0.00277199,2940.9,2939.6,2.69148403]
[1769200409263,0.00277199,2940.9,2939.7,0.17029]
[1769200409462,0.41201479,2942.2,2939.8,2.69516008]
[1769200409660,1.2077473,2942.1,2939.8,2.86545008]
[1769200409973,0.41201479,2942.2,2939.8,2.86545008]
[1769200409974,1.2077473,2942.0,2939.8,2.86545008]
[1769200410168,1.2077473,2941.9,2939.9,0.17028]
[1769200410471,1.2077473,2941.9,2940.0,2.69313092]
[1769200410472,0.42692753,2941.7,2940.0,2.69313092]
[1769200410679,1.2077473,2941.6,2940.0,2.69313092]
[1769200410872,1.2077473,2941.5,2940.0,2.69313092]
[1769200411073,1.2077473,2941.4,2940.0,2.69313092]
[1769200411368,0.88150738,2941.3,2940.0,2.69313092]
[1769200411567,0.42692753,2941.7,2940.0,2.69313092]
[1769200411766,1.20776305,2941.6,2940.0,2.69313092]
[1769200411969,1.20776305,2941.5,2940.0,2.69313092]
[1769200412280,1.20776305,2941.4,2940.0,2.69313092]
[1769200412579,1.20779026,2941.3,2939.8,0.17029]
[1769200412765,0.42692753,2941.7,2939.8,2.88032796]
[1769200412973,1.20802315,2941.6,2939.8,2.88032796]
[1769200413272,1.20802315,2941.5,2940.0,0.17027]
[1769200413469,0.00386859,2941.9,2940.0,2.88030796]
[1769200413663,1.20836589,2941.8,2940.0,2.88030796]
[1769200413870,1.20836589,2941.7,2940.0,2.88030796]
[1769200414068,1.20841218,2941.6,2940.1,2.88030796]
[1769200414272,0.00386859,2941.9,2940.4,2.71003796]
[1769200414470,1.20847446,2941.8,2940.4,2.71003796]
[1769200414666,1.20847446,2941.7,2940.4,2.71003796]
[1769200414867,0.00386859,2941.9,2940.4,2.71003796]
[1769200415172,0.47392817,2941.7,2939.7,2.71003796]
[1769200415473,0.47392817,2941.5,2939.7,2.71003796]
[1769200415680,1.20849089,2941.4,2939.7,2.71003796]
[1769200415974,0.65525681,2941.1,2939.5,0.00510246]
[1769200416179,1.29350683,2940.8,2939.5,0.00510246]
[1769200416382,1.20849089,2940.7,2939.5,0.00510246]
[1769200416581,1.20849089,2940.6,2939.5,0.00510246]
[1769200416770,1.20849089,2940.5,2939.2,0.00344233]
[1769200416977,1.21341735,2940.4,2939.2,0.00344233]
[1769200417174,0.8821128,2940.3,2939.2,0.00344233]
[1769200417366,0.00510246,2940.4,2939.2,2.71348029]
[1769200421281,0.32583528,2940.3,2939.2,0.00344233]
[1769200421486,1.29860929,2940.4,2938.7,2.72329719]
[1769200421682,0.32583405,2940.3,2938.7,2.72329719]
[1769200421884,7.72160929,2940.4,2938.7,2.72329719]
[1769200422086,0.32583122,2940.3,2938.7,2.72329719]
[1769200422283,7.72160929,2940.4,2938.7,2.72329719]
[1769200422487,0.3257314,2940.3,2938.7,2.72674422]
[1769200422682,0.1703,2939.6,2937.9,2.7228043]
[1769200423185,0.17031,2939.4,2937.1,3.405]
[1769200423385,0.17031,2939.4,2937.3,2.89203999]
[1769200423777,1.29350683,2939.3,2937.3,2.89587611]
[1769200423980,1.29350683,2938.8,2937.3,2.72544611]
[1769200424191,0.00510246,2938.6,2937.3,0.00383612]
[1769200426392,0.71165758,2938.5,2937.3,0.00383612]
[1769200426592,0.17037,2938.4,2936.4,2.71839604]
[1769200427196,0.00510246,2938.6,2936.6,2.88721136]
[1769200427490,0.00510246,2938.6,2936.6,2.88969674]
[1769200428493,0.56817066,2938.6,2936.6,2.88969674]
[1769200428687,0.00510246,2938.6,2936.6,2.88969674]
[1769200429093,0.00510246,2938.6,2936.9,2.71003796]
[1769200429793,0.00510246,2938.6,2936.9,2.88048796]
[1769200430386,0.00510246,2938.6,2937.1,2.71003796]
[1769200430582,1.29350683,2939.3,2937.5,2.71003796]
[1769200430789,0.17032,2939.3,2937.5,2.71514042]
[1769200431486,0.00332456,2939.4,2937.5,2.71514042]
[1769200431687,0.00332456,2939.4,2937.5,2.88556042]
[1769200432289,0.17363456,2939.4,2937.5,2.88556042]
[1769200432494,0.17363456,2939.4,2937.5,2.71514042]
[1769200432890,1.29350683,2938.7,2937.5,0.00510246]
[1769200433195,0.17036,2938.6,2937.5,0.00510246]
[1769200433787,1.46388683,2938.2,2936.6,0.00248538]
[1769200434096,0.17039,2938.1,2936.6,0.00248538]
[1769200434685,1.29350683,2937.7,2936.6,0.00248538]
[1769200435393,0.17041,2937.8,2936.6,0.00248538]
[1769200437188,1.29350683,2938.2,2936.6,0.00248538]
[1769200437384,0.00510246,2938.3,2936.6,0.00248538]
[1769200437385,0.00510246,2938.3,2936.6,2.71252334]
[1769200437587,0.00510246,2938.3,2936.9,2.71003796]
[1769200437995,0.00510246,2938.3,2936.6,0.00248538]
[1769200437996,0.00510246,2938.3,2937.1,2.71003796]
[1769200438184,1.29350683,2938.2,2936.6,0.00248538]
[1769200438386,1.29350683,2938.2,2936.6,2.71252334]
[1769200438591,0.00510246,2938.3,2936.6,2.71252334]
[1769200439086,2.01991221,2938.2,2936.6,0.00248538]
[1769200439285,0.17039,2938.0,2936.6,0.00248538]
[1769200439486,0.17041,2937.7,2936.6,0.00248538]
[1769200440095,1.46391683,2937.7,2936.6,0.00248538]
[1769200440289,1.46391683,2937.7,2936.0,2.71003796]
[1769200440494,0.17042,2937.6,2936.0,2.71003796]
[1769200440693,0.17548246,2938.3,2936.0,2.71003796]
[1769200440997,0.00510246,2938.3,2936.2,2.71003796]
[1769200441201,0.17039,2938.0,2936.2,2.71003796]
[1769200441400,0.17039,2938.0,2936.2,2.71413079]
[1769200441896,0.17039,2938.0,2936.2,0.00409283]
[1769200441897,1.46391683,2937.7,2936.2,0.00409283]
[1769200442096,1.29350683,2938.2,2936.2,2.97942974]
[1769200442399,0.00510246,2938.3,2936.6,2.97533691]
[1769200442801,0.00510246,2938.3,2936.8,2.97533691]
[1769200443000,0.00510246,2938.3,2936.8,3.14579691]
[1769200443391,0.00510246,2938.3,2937.1,2.97533691]
[1769200443697,0.17032,2939.2,2937.3,2.97533691]
[1769200443897,0.17032,2939.2,2936.7,3.408]
[1769200443898,0.00332456,2939.4,2937.8,2.97533691]
[1769200444394,0.00332456,2939.4,2937.4,0.00510246]
[1769200444395,0.00332456,2939.4,2938.0,2.97533691]
[1769200445292,0.00332456,2939.4,2938.0,3.14572691]
[1769200445795,0.17026,2940.3,2938.2,2.97533691]
[1769200445989,0.87962434,2940.2,2938.2,2.97533691]
[1769200446188,0.87962434,2940.1,2938.2,3.14571691]
[1769200446393,0.87962434,2940.0,2938.2,3.14571691]
[1769200446598,0.17026,2940.3,2938.2,3.14571691]
[1769200446796,0.88020121,2940.2,2938.9,0.00510246]
[1769200447103,0.88020121,2940.1,2938.9,0.0094133]
[1769200447402,0.88020121,2940.0,2938.9,0.0094133]
[1769200447597,0.17342816,2940.3,2938.9,0.0094133]
[1769200447795,0.88029197,2940.2,2938.9,0.0094133]
[1769200447990,0.88029197,2940.1,2938.9,0.0094133]
[1769200448195,0.00316816,2940.3,2938.9,0.0094133]
[1769200448399,0.8803431,2940.2,2938.9,0.0094133]
[1769200448596,0.00316816,2940.3,2938.9,0.0094133]
[1769200448802,0.00316816,2940.3,2938.9,2.8713966]
[1769200449399,0.88050924,2940.2,2938.9,2.8713966]
[1769200449605,0.00316816,2940.3,2938.9,2.8713966]
[1769200449903,0.88055827,2940.2,2938.9,2.8713966]
[1769200450103,0.00316816,2940.3,2938.9,2.8713966]
[1769200450500,0.88100218,2940.2,2938.9,2.8713966]
[1769200450707,0.00316816,2940.3,2938.9,2.8713966]
[1769200451507,0.00316816,2940.3,2938.9,3.0417366]
[1769200451702,0.00316816,2940.3,2939.1,2.8619833]
[1769200451904,3.408,2941.1,2939.1,3.0323133]
[1769200452207,0.88120955,2941.0,2939.3,2.8619833]
[1769200452397,0.88120955,2940.9,2939.3,2.8619833]
[1769200452599,3.408,2941.1,2939.3,2.8619833]
[1769200452799,1.05107344,2941.0,2939.3,2.8619833]
[1769200453000,0.88085344,2940.9,2939.3,2.8619833]
[1769200454502,0.0042544,2941.0,2939.3,2.8619833]
[1769200455213,0.87980886,2940.9,2939.3,2.8619833]
[1769200455403,0.1744744,2941.0,2939.3,2.8619833]
[1769200455604,0.87946674,2940.9,2939.3,2.8619833]
[1769200455903,0.1744744,2941.0,2938.9,0.0094133]
[1769200455904,1.20463567,2940.8,2938.9,0.0094133]
[1769200456105,0.87943479,2940.7,2938.9,0.0094133]
[1769200456304,0.17023,2940.8,2938.9,2.8713966]
[1769200457812,0.91046709,2941.0,2939.1,2.8619833]
[1769200457813,0.0042544,2941.0,2939.1,2.8619833]
[1769200458021,0.87878677,2940.9,2939.1,2.8619833]
[1769200458227,0.87878677,2940.8,2939.1,2.8619833]
[1769200458420,0.0042544,2941.0,2939.1,2.8619833]
[1769200458824,0.0042544,2941.0,2939.1,3.0323133]
[1769200458825,0.1744744,2941.0,2939.1,3.0323133]
[1769200459320,0.0042544,2941.0,2939.3,3.0323033]
[1769200459824,0.0042544,2941.0,2939.8,2.8619833]
[1769200460620,0.0042544,2941.0,2939.2,2.8619833]
[1769200463128,0.0042544,2941.0,2939.2,3.0323033]
[1769200463424,0.0042544,2941.0,2939.4,3.0322933]
[1769200469627,7.45595637,2940.9,2938.9,0.0094133]
[1769200469833,0.17025,2940.5,2938.9,0.0094133]
[1769200470134,0.17026,2940.2,2938.9,0.0094133]
[1769200471133,0.88077203,2940.1,2938.9,0.0094133]
[1769200471332,0.8819904,2940.0,2938.9,0.0094133]
[1769200471527,0.17026,2940.2,2938.9,0.0094133]
[1769200471831,0.88209915,2940.1,2938.9,0.0094133]
[1769200472034,0.88209915,2940.0,2938.9,0.0094133]
[1769200472227,0.17026,2940.2,2938.9,0.0094133]
[1769200472426,1.20993903,2940.1,2938.9,0.0094133]
[1769200472728,1.20993903,2940.1,2937.9,2.90151097]
[1769200472729,1.21218942,2939.7,2937.9,2.90151097]
[1769200472933,2.25237447,2939.6,2937.9,2.90151097]
[1769200473231,1.20993903,2939.5,2937.9,2.90151097]
[1769200473532,1.04243544,2939.3,2937.9,0.00301626]
[1769200473730,0.17034,2939.0,2937.9,0.00301626]
[1769200473930,1.21016172,2938.9,2937.3,2.90151097]
[1769200474130,1.21016172,2938.8,2937.3,2.90151097]
[1769200474326,2.39240297,2939.5,2937.3,2.90151097]
[1769200474533,1.21001947,2939.4,2937.3,3.07194097]
[1769200474731,1.21001947,2939.3,2937.3,3.07194097]
[1769200474934,1.21001947,2939.2,2937.3,3.07194097]
[1769200475233,1.21001947,2939.1,2937.3,3.07526772]
[1769200475534,0.88336748,2939.0,2937.3,3.07526772]
[1769200475834,0.88336748,2938.9,2937.3,3.07526772]
[1769200476030,1.0755492,2939.3,2937.3,2.90483772]
[1769200476230,0.17034,2939.0,2937.3,2.90483772]
[1769200476433,1.20944638,2938.9,2937.3,2.90483772]
[1769200476633,1.37979638,2938.8,2937.3,0.00332675]
[1769200476835,1.20944638,2938.7,2937.3,0.00332675]
[1769200477125,1.20944638,2938.6,2937.3,0.00332675]
[1769200477331,1.95549535,2938.5,2936.8,2.90151097]
[1769200477530,1.07253916,2938.5,2936.8,2.90151097]
[1769200477836,0.8813493,2938.4,2936.8,2.90151097]
[1769200478132,3.406,2938.7,2936.8,2.90151097]
[1769200478325,0.00510246,2937.9,2936.8,2.90563962]
[1769200478722,1.24827193,2939.0,2936.8,2.90563962]
[1769200478932,1.10539158,2938.8,2937.1,0.00510246]
[1769200479139,1.10539158,2938.3,2936.8,0.00412865]
[1769200479530,0.87999364,2938.2,2936.8,0.00412865]
[1769200479732,1.10539158,2938.3,2936.8,0.00412865]
[1769200479934,0.87998577,2938.2,2936.8,0.00412865]
[1769200480131,1.10539158,2938.3,2936.8,0.00412865]
[1769200480532,0.00510246,2937.8,2936.8,0.00412865]
[1769200480938,1.12942178,2937.7,2935.4,2.90151097]
[1769200481835,1.12942178,2937.7,2935.5,2.90151097]
[1769200482640,1.12942178,2937.7,2935.5,3.07205097]
[1769200483035,1.29983178,2937.7,2935.5,3.07205097]
[1769200483242,1.29983178,2937.7,2935.6,2.90151097]
[1769200483443,1.29983178,2937.7,2935.6,3.07204097]
[1769200484139,1.29983178,2937.7,2935.8,3.07203097]
[1769200484644,0.17041,2937.7,2935.8,3.07203097]
[1769200485147,0.00510246,2937.8,2936.1,3.07201097]
[1769200487545,0.00510246,2937.8,2936.2,3.07201097]
[1769200487934,0.00510246,2937.8,2936.2,2.90151097]
[1769200488137,0.00510246,2937.8,2936.4,3.07199097]
[1769200488841,3.408,2938.6,2937.1,2.90151097]
[1769200489032,0.27741639,2939.1,2937.1,2.90151097]
[1769200489232,0.27741639,2939.1,2937.5,2.90151097]
[1769200489436,0.00290194,2939.3,2937.6,3.07192097]
[1769200489642,0.00290194,2939.3,2937.7,6.30951097]
[1769200489842,0.00290194,2939.3,2938.2,2.90151097]
[1769200490144,1.54301443,2940.3,2938.4,2.90151097]
[1769200490340,0.17024,2940.7,2938.4,3.07188097]
[1769200490538,0.44757435,2940.7,2938.4,3.07188097]
[1769200490745,1.7229653,2940.7,2939.1,0.00510246]
[1769200491247,1.72714589,2940.7,2939.1,0.00510246]
[1769200492543,1.44336343,2940.4,2939.1,0.00510246]
[1769200492848,1.27820589,2940.2,2938.4,2.90151097]
[1769200495444,0.00510246,2940.2,2938.4,2.90151097]
[1769200496543,0.00510246,2940.2,2938.5,3.07187097]
[1769200499252,1.46875371,2940.2,2938.5,3.07187097]
[1769200499749,1.46875371,2940.2,2938.5,2.90151097]
[1769200499943,1.46875371,2940.2,2937.9,0.1704]
[1769200499944,1.46875371,2940.2,2938.1,2.90151097]
[1769200500242,1.46790353,2939.6,2937.6,2.90151097]
[1769200500450,1.63822353,2939.3,2937.3,0.17043]
[1769200500651,1.46790353,2939.1,2937.3,0.17043]
[1769200500945,0.17032,2939.3,2937.5,2.90411094]
[1769200501149,0.88010522,2939.2,2937.5,2.90411094]
[1769200501348,0.00510246,2938.6,2937.5,2.90411094]
[1769200501544,1.45569449,2939.5,2937.5,3.07453094]
[1769200501745,0.88025987,2939.4,2938.1,0.00510246]
[1769200502050,0.88025987,2939.3,2938.1,0.00510246]
[1769200502255,1.64724194,2939.8,2938.1,0.00510246]
[1769200502550,1.47695194,2939.4,2938.1,0.00510246]
[1769200502748,0.88042125,2939.3,2938.1,0.00510246]
[1769200502938,1.30038272,2939.8,2938.1,0.00510246]
[1769200503140,0.00402623,2939.8,2938.2,3.31227276]
[1769200503546,1.44187845,2939.8,2938.1,0.00510246]
[1769200503748,2.31839819,2939.7,2938.1,0.00510246]
[1769200503940,0.88054597,2939.6,2938.1,0.00510246]
[1769200504542,0.00402623,2939.8,2938.1,3.14699522]
[1769200504748,0.88053373,2939.7,2938.1,3.14699522]
[1769200504948,0.00402623,2939.8,2938.1,3.14699522]
[1769200505150,2.31073799,2939.7,2938.1,0.00510246]
[1769200505453,0.88069889,2939.6,2938.1,3.14699522]
[1769200505659,0.88069889,2939.5,2938.1,3.14699522]
[1769200505947,1.60831567,2939.8,2938.1,0.00510246]
[1769200506147,0.8806298,2939.7,2938.1,0.00510246]
[1769200506350,0.8806298,2939.6,2938.1,0.00510246]
[1769200506551,1.60831567,2939.8,2938.1,3.14699522]
[1769200506756,0.88063546,2939.7,2938.1,3.14699522]
[1769200506947,0.88063546,2939.6,2938.1,3.14699522]
[1769200507248,0.88063546,2939.5,2938.1,3.14699522]
[1769200507452,1.44121824,2939.3,2937.5,3.13142459]
[1769200507655,0.88063546,2939.2,2937.5,3.13142459]
[1769200507845,0.00510246,2939.1,2937.5,3.13142459]
[1769200508255,0.00510246,2939.1,2937.8,3.12882462]
[1769200508457,0.00510246,2939.1,2937.8,3.29922462]
[1769200509754,0.00510246,2939.1,2937.5,3.13142459]
[1769200509946,0.00510246,2939.1,2937.5,3.30184459]
[1769200510150,0.00510246,2939.1,2937.9,3.29921462]
[1769200510854,0.00402623,2939.8,2938.3,3.29919462]
[1769200511156,0.00402623,2939.8,2938.5,3.12882462]
[1769200511359,0.00402623,2939.8,2938.8,3.29916462]
[1769200511752,0.00402623,2939.8,2938.8,3.12882462]
[1769200511950,11.331,2941.1,2939.2,3.29914462]
[1769200511951,6.423,2941.1,2939.2,3.29914462]
[1769200512151,6.5932,2941.3,2939.2,3.12882462]
[1769200512358,1.20624429,2941.2,2939.2,3.12882462]
[1769200512558,6.5932,2941.3,2939.2,3.12882462]
[1769200512752,1.20626481,2941.2,2940.0,0.00510246]
[1769200512954,0.00510246,2940.5,2939.2,3.12882462]
[1769200513360,0.00510246,2940.5,2939.5,3.12882462]
[1769200514060,0.00510246,2940.5,2939.5,0.00381231]
[1769200516661,0.17313003,2941.2,2939.5,3.30293693]
[1769200516662,0.00292003,2941.2,2939.5,3.30293693]
[1769200516864,1.20847524,2941.1,2939.5,3.30293693]
[1769200517062,0.00292003,2941.2,2939.7,0.00510246]
[1769200517265,1.20849729,2941.1,2939.7,0.00510246]
[1769200517466,0.00292003,2941.2,2939.7,0.00510246]
[1769200517663,0.00292003,2941.2,2939.9,3.12882462]
[1769200518263,9.829,2942.0,2939.9,3.12882462]
[1769200518464,1.2101042,2941.9,2939.9,3.12882462]
[1769200518768,1.2101042,2941.8,2940.0,1.893]
[1769200518966,3.406,2942.0,2940.4,3.29907462]
[1769200519166,3.406,2942.0,2940.6,3.12882462]
[1769200519374,3.40990362,2942.0,2940.6,3.29906462]
[1769200519762,3.40990362,2942.0,2940.7,3.12882462]
[1769200519763,0.00390362,2942.0,2940.7,3.12882462]
[1769200520464,0.00390362,2942.0,2940.8,0.17023]
[1769200520669,0.00390362,2942.0,2940.9,3.12882462]
[1769200520857,0.00390362,2942.0,2940.2,3.12882462]
[1769200521060,0.00390362,2942.0,2940.4,3.12882462]
[1769200521869,0.00390362,2942.0,2940.6,3.12882462]
[1769200524267,0.00390362,2942.0,2940.8,3.12882462]
[1769200525174,0.00390362,2942.0,2940.8,3.29905462]
[1769200527170,0.00390362,2942.0,2940.8,3.12882462]
[1769200527473,0.00390362,2942.0,2940.3,3.29908462]
[1769200527868,0.00390362,2942.0,2940.3,3.12882462]
[1769200528371,0.00390362,2942.0,2940.7,3.12882462]
[1769200529277,0.00390362,2942.0,2941.1,3.29903462]
[1769200529572,0.00390362,2942.0,2940.6,3.12882462]
[1769200530277,0.00390362,2942.0,2941.0,0.00510246]
[1769200530972,0.00390362,2942.0,2941.0,3.13392708]
[1769200531666,0.27241557,2942.9,2941.5,0.17019]
[1769200531871,0.27241557,2942.9,2941.6,3.12882462]
[1769200532566,1.40055599,2942.9,2941.1,3.15186232]
[1769200532771,1.41569462,2942.6,2941.1,0.00373027]
[1769200533769,0.00317067,2942.9,2941.1,3.15559259]
[1769200533979,0.00317067,2942.9,2941.1,3.32580259]
[1769200534479,0.00317067,2942.9,2941.3,3.15186232]
[1769200537881,1.23575708,2942.7,2941.1,0.00373027]
[1769200538183,0.88024636,2942.6,2941.1,0.00373027]
[1769200538385,0.88024636,2942.5,2941.1,0.00373027]
[1769200538579,0.88024636,2942.4,2941.1,0.00373027]
[1769200538881,1.23575708,2942.7,2941.1,0.00373027]
[1769200539072,1.20660685,2942.6,2941.1,0.00373027]
[1769200539275,1.20700391,2942.5,2941.1,0.00373027]
[1769200539478,0.88112351,2942.4,2941.1,0.00373027]
[1769200540081,0.88112351,2942.4,2941.1,3.15559259]
[1769200540281,0.88112351,2942.3,2941.1,3.15559259]
[1769200540482,0.88112351,2942.2,2941.1,3.15559259]
[1769200540678,1.23096388,2942.8,2941.1,3.15559259]
[1769200540882,1.21003001,2942.7,2941.1,3.15559259]
[1769200541084,1.23096388,2942.5,2941.1,0.00373027]
[1769200541283,1.21003001,2942.6,2941.1,0.00373027]
[1769200541284,2.52732037,2942.3,2941.1,0.00373027]
[1769200541579,1.21003001,2942.2,2941.1,0.00373027]
[1769200541773,0.88362422,2942.1,2941.1,0.00373027]
[1769200541977,0.88362422,2942.0,2941.1,0.00373027]
[1769200542177,0.88362422,2941.9,2941.1,0.00373027]
[1769200542382,10.04953752,2942.9,2941.1,0.00373027]
[1769200542582,1.21249718,2942.8,2941.1,3.15559259]
[1769200542782,1.21249718,2942.7,2941.1,3.15559259]
[1769200542984,1.21249718,2942.6,2941.2,3.32207232]
[1769200543184,0.88542622,2942.5,2941.2,3.32207232]
[1769200543384,0.88542622,2942.4,2941.2,3.32207232]
[1769200543573,0.88542622,2942.3,2941.2,3.32207232]
[1769200543772,6.42617067,2942.9,2941.2,3.32207232]
[1769200543976,3.73097931,2942.8,2941.1,0.00373027]
[1769200544185,1.22152368,2942.6,2941.1,0.00373027]
[1769200544488,1.21309914,2942.5,2941.1,0.00373027]
[1769200544684,1.21309914,2942.4,2941.1,0.00373027]
[1769200544882,1.21309914,2942.3,2941.1,0.00373027]
[1769200545083,0.8858672,2942.2,2941.1,0.00373027]
[1769200545283,0.8858672,2942.1,2941.1,0.00373027]
[1769200545486,0.8858672,2942.0,2941.1,0.00373027]
[1769200545682,8.98868364,2942.9,2941.1,3.15559259]
[1769200545883,1.21455177,2942.8,2941.3,3.15186232]
[1769200546182,1.21455177,2942.7,2941.3,3.32206232]
[1769200546373,1.21455177,2942.6,2941.3,3.15186232]
[1769200546577,0.88692923,2942.5,2941.3,3.15186232]
[1769200546887,0.88692923,2942.4,2941.5,0.17019]
[1769200547187,0.88692923,2942.3,2941.5,0.17019]
[1769200547484,0.88692923,2942.2,2941.5,0.17019]
[1769200547685,6.42617067,2942.9,2941.5,0.17019]
[1769200547880,1.21665942,2942.8,2941.5,0.17019]
[1769200548081,1.21665942,2942.7,2941.5,0.17019]
[1769200548282,1.21665942,2942.6,2941.5,0.17019]
[1769200548482,1.21665942,2942.5,2941.5,0.17019]
[1769200548682,1.21665942,2942.4,2941.5,0.17019]
[1769200548991,0.88847077,2942.3,2941.5,0.17019]
[1769200549183,0.88847077,2942.2,2941.5,0.17019]
[1769200549385,0.88847077,2942.1,2941.3,3.15186232]
[1769200549578,4.86884618,2942.8,2941.1,0.00373027]
[1769200549781,3.5747571,2942.5,2941.1,0.00373027]
[1769200549983,3.68875946,2942.3,2941.1,0.00373027]
[1769200550182,3.68875946,2942.3,2940.1,5.295]
[1769200550183,1.29635649,2941.8,2939.8,3.32214232]
[1769200550489,2.39240297,2941.6,2939.8,3.15186232]
[1769200550781,2.39240297,2941.2,2939.6,3.404]
[1769200550983,0.17022,2941.0,2939.4,1.891]
[1769200551176,1.21692522,2940.9,2939.2,3.15186232]
[1769200551379,1.21692522,2940.8,2939.2,3.1562202]
[1769200551579,1.21503207,2940.7,2939.2,3.1562202]
[1769200551783,1.21503207,2940.6,2939.2,3.1562202]
[1769200551982,0.00510246,2940.3,2939.2,3.1562202]
[1769200554682,0.00510246,2940.3,2939.2,0.00435788]
[1769200555180,0.00510246,2940.3,2939.2,3.1562202]
[1769200555888,1.30145895,2940.3,2938.7,3.15186232]
[1769200556092,1.21016992,2940.2,2938.2,3.15186232]
[1769200556287,0.17028,2940.0,2938.0,3.404]
[1769200556495,0.17028,2940.0,2937.0,5.51130292]
[1769200556496,0.17033,2939.1,2937.6,3.15186232]
[1769200556690,1.10293342,2939.6,2937.6,3.15186232]
[1769200556993,4.61239078,2939.5,2937.6,3.15482093]
[1769200557186,1.20839078,2939.4,2937.6,3.15482093]
[1769200557385,0.00510246,2938.9,2937.6,3.15482093]
[1769200557594,0.00510246,2938.9,2937.6,0.00295861]
[1769200560593,0.00510246,2938.9,2937.6,3.15482093]
[1769200561100,0.00510246,2938.9,2937.6,3.32523093]
[1769200562596,0.00510246,2938.9,2937.6,3.15482093]
[1769200563591,0.00510246,2938.9,2933.3,14.4964609]
[1769200563592,1.29635649,2938.4,2936.9,2.9805603]
[1769200563794,1.29635649,2938.4,2936.4,2.9805603]
[1769200563997,2.60047111,2938.4,2936.4,2.9805603]
[1769200564394,0.00510246,2937.7,2936.4,2.9805603]
[1769200564695,0.00779683,2937.7,2936.4,2.98330601]
[1769200566998,1.12436418,2938.9,2936.8,3.00414649]
[1769200567201,3.407,2939.2,2937.1,3.16948403]
[1769200567398,0.1703,2939.6,2937.3,2.99904403]
[1769200567697,3.5773,2939.6,2937.4,0.17042]
[1769200567899,1.30791366,2939.2,2937.0,2.99904403]
[1769200568097,1.1417895,2939.2,2937.0,2.99904403]
[1769200568300,0.17034,2939.0,2937.0,2.99904403]
[1769200569103,1.1417895,2939.2,2937.0,2.99904403]
[1769200569104,0.17034,2938.9,2937.0,2.99904403]
[1769200569308,0.17035,2938.8,2937.0,2.99904403]
[1769200569807,0.17036,2938.6,2937.0,2.99904403]
[1769200570005,0.17036,2938.6,2936.8,0.00510246]
[1769200570305,0.17037,2938.4,2936.8,0.00510246]
[1769200570899,3.407,2938.7,2936.8,3.00414649]
[1769200571502,3.407,2938.7,2936.8,3.17460649]
[1769200572407,3.57734,2938.9,2937.0,3.16949403]
[1769200572808,3.407,2938.9,2937.2,2.99904403]
[1769200572996,0.00419584,2939.2,2937.2,3.16948403]
[1769200573201,0.00419584,2939.2,2937.4,2.99904403]
[1769200573503,0.00419584,2939.2,2937.4,3.16947403]
[1769200575002,0.00419584,2939.2,2937.4,2.99904403]
[1769200575205,0.00419584,2939.2,2937.8,2.99904403]
[1769200576203,0.00419584,2939.2,2938.4,2.99904403]
[1769200576704,0.2768458,2940.1,2938.4,2.99904403]
[1769200577010,0.4471158,2940.1,2938.4,2.99904403]
[1769200577208,0.17027,2940.1,2938.5,0.00510246]
[1769200577508,0.17453871,2940.1,2938.5,0.00882214]
[1769200578002,0.17453871,2940.1,2938.5,3.00786617]
[1769200578300,0.00426871,2940.1,2938.7,2.99904403]
[1769200579212,0.00426871,2940.1,2938.5,0.00882214]
[1769200579402,0.00426871,2940.1,2938.5,3.00786617]
[1769200579807,0.00426871,2940.1,2938.5,3.17822617]
[1769200580008,0.00426871,2940.1,2938.7,2.99904403]
[1769200581306,0.8809549,2940.0,2938.7,2.99904403]
[1769200581509,0.00426871,2940.1,2938.7,2.99904403]
[1769200581709,0.88089954,2940.0,2938.7,2.99904403]
[1769200582009,0.00426871,2940.1,2938.7,2.99904403]
[1769200582209,0.8809125,2940.0,2938.7,2.99904403]
[1769200582411,0.00426871,2940.1,2938.7,2.99904403]
[1769200582612,0.88129016,2940.0,2938.7,2.99904403]
[1769200582808,0.88124503,2939.9,2938.7,2.99904403]
[1769200583010,0.00426871,2940.1,2938.7,2.99904403]
[1769200583312,0.88112609,2940.0,2938.7,2.99904403]
[1769200583510,0.88142524,2939.9,2938.7,2.99904403]
[1769200583813,0.00426871,2940.1,2938.7,2.99904403]
[1769200584014,0.88139693,2940.0,2938.7,2.99904403]
[1769200584210,0.00426871,2940.1,2938.7,2.99904403]
[1769200584412,0.88154313,2940.0,2938.7,2.99904403]
[1769200584607,0.88154313,2939.9,2938.7,2.99904403]
[1769200584806,0.00426871,2940.1,2938.7,2.99904403]
[1769200585005,0.88158107,2940.0,2938.7,2.99904403]
[1769200585206,0.00426871,2940.1,2938.8,0.17034]
[1769200585415,0.00426871,2940.1,2938.9,2.99904403]
[1769200586910,6.423,2940.8,2938.9,2.99904403]
[1769200587215,0.1702,2941.3,2939.2,3.16936403]
[1769200587412,1.20689198,2941.2,2939.2,3.16936403]
[1769200587608,1.20689198,2941.1,2939.2,3.16936403]
[1769200587924,1.20687654,2941.0,2939.2,2.99904403]
[1769200588106,2.4970948,2940.9,2939.2,2.99904403]
[1769200588303,0.17024,2940.7,2939.2,2.99904403]
[1769200588514,1.20687654,2940.6,2939.2,2.99904403]
[1769200588717,1.20687654,2940.5,2939.2,2.99904403]
[1769200588918,0.17024,2940.7,2939.2,2.99904403]
[1769200589216,1.20645171,2940.6,2939.2,2.99904403]
[1769200589516,0.8810801,2940.5,2939.2,2.99904403]
[1769200589818,0.88122307,2940.4,2939.2,2.99904403]
[1769200590012,0.17024,2940.7,2939.2,2.99904403]
[1769200590211,1.20665346,2940.6,2939.2,2.99904403]
[1769200590410,1.05147522,2940.5,2938.6,2.99904403]
[1769200590609,1.20660242,2940.4,2938.6,2.99904403]
[1769200590815,0.88122522,2940.3,2938.6,2.99904403]
[1769200591014,0.88122522,2940.2,2938.6,2.99904403]
[1769200591214,0.88089576,2940.1,2938.6,2.99904403]
[1769200591417,0.88089576,2940.0,2938.6,2.99904403]
[1769200591610,0.88089576,2939.9,2938.6,2.99904403]
[1769200591918,0.88089576,2939.8,2938.6,2.99904403]
[1769200592211,0.17026,2940.3,2938.6,2.99904403]
[1769200592516,1.20629209,2940.2,2938.6,2.99904403]
[1769200592712,0.88094877,2940.1,2938.6,2.99904403]
[1769200592921,0.88094877,2940.0,2938.6,2.99904403]
[1769200593113,0.88094877,2939.9,2938.6,2.99904403]
[1769200593312,0.88094877,2939.8,2938.6,2.99904403]